fUST/lending_fUST_20251005
["ID","MTS","AMOUNT","RATE_DAILY","PERIOD"]
[389161267,1759594246121,-160.28017139,0.00018989,2]
[389161268,1759594246132,-203.19605532,0.00018989,2]
[389161269,1759594246141,-500.0,0.00018989,2]
[389161270,1759594246150,-527.54805798,0.00018989,2]
[389161271,1759594246159,-500.0,0.00018989,2]
[389161272,1759594246170,-500.0,0.00018989,2]
[389161273,1759594246179,-537.55909338,0.00018989,2]
[389161274,1759594246188,-535.25364672,0.00018989,2]
[389161275,1759594246198,-481.91745429,0.00018989,2]
[389161276,1759594246209,-778.05726635,0.000195,2]
[389161284,1759594301975,2352.0,0.0002876,120]
[389161289,1759594458889,5000.0,0.00018799,2]
[389161290,1759594478752,1000.0,0.00018204,2]
[389161291,1759594503546,300.0,0.000182,2]
[389161292,1759594514884,300.0,0.000182,2]
[389161293,1759594562191,300.0,0.000182,2]
[389161294,1759594566810,153.2787178,0.00018704,2]
[389161298,1759594696618,2946.7312822,0.000181,2]
[389161299,1759594696647,10000.01,0.000181,2]
[389161300,1759594696676,4148.2026611,0.000181,2]
[389161302,1759594718703,5000.0,0.00018799,2]
[389161303,1759594741021,4086.84278636,0.00018799,2]
[389161304,1759594795363,500.0,0.00027397,120]
[389161307,1759594943938,200.0,0.00025,30]
[389161308,1759594946499,200.0,0.00025,30]
[389161310,1759594995693,913.16721364,0.00016469,2]
[389161311,1759594995724,494.63035593,0.00016469,2]
[389161312,1759594996068,1407.79756957,0.00016714,2]
[389161313,1759594996370,1407.79756957,0.00017081,2]
[389161314,1759594996699,1407.79756957,0.00017399,2]
[389161315,1759594997021,1407.79756957,0.00017704,2]
[389161316,1759594997346,1407.79756957,0.00017922,2]
[389161317,1759594997664,1407.79756957,0.00018295,2]
[389161318,1759594997975,1058.59422665,0.00018531,2]
[389161319,1759594998005,349.20334292,0.00018531,2]
[389161320,1759594998110,2614.44,0.00028767,120]
[389161323,1759595030259,916.057085,0.00017969,2]
[389161325,1759595101374,183.837877,0.00017971,2]
[389161326,1759595110119,500.0,0.00027397,120]
[389161349,1759595278363,222.16203801,0.00025,120]
[389161352,1759595311714,575.82446711,0.0002,120]
[389161353,1759595313901,593.29791864,0.00024108,120]
[389161354,1759595314042,3200.61646609,0.00025,120]
[389161355,1759595314183,369.61389636,0.00025,120]
[389161356,1759595315756,153.24028092,0.00025,120]
[389161357,1759595315831,5932.47184739,0.00028,120]
[389161358,1759595316929,1005.1416356,0.00025,120]
[389161359,1759595317818,206.97420377,0.00027,120]
[389161360,1759595318911,5279.12724173,0.00027,120]
[389161361,1759595319264,150.99999925,0.0002,120]
[389161362,1759595320058,2057.44001179,0.00024,120]
[389161363,1759595320315,1901.1519189,0.00018,120]
[389161364,1759595320410,1636.68647701,0.00028767,120]
[389161365,1759595320731,195.82596932,0.00025,120]
[389161366,1759595320872,293.03657184,0.00027397,120]
[389161367,1759595321036,223.8595381,0.0001536,120]
[389161368,1759595321708,514.24842212,0.00025,120]
[389161369,1759595322265,1834.90148156,0.000249,120]
[389161376,1759595323008,195.96696716,0.0002739,120]
[389161377,1759595323093,3173.95697407,0.00027,120]
[389161378,1759595323650,717.72365362,0.00026,120]
[389161379,1759595323716,361.5561663,0.00026,120]
[389161380,1759595324052,429.27493019,0.00025,120]
[389161381,1759595324406,8550.91169508,0.0001,2]
[389161382,1759595324429,10000.01,0.0001,2]
[389161383,1759595324452,3961.67315272,0.0001,2]
[389161384,1759595324582,1190.53113112,0.00027,120]
[389161385,1759595325264,2761.06049058,0.00023,120]
[389161386,1759595326405,214.3310969,0.00028,120]
[389161387,1759595326526,209.59114177,0.00026,120]
[389161388,1759595326569,191.35732864,0.00028,120]
[389161389,1759595349417,1000.0,0.00018737,2]
[389161390,1759595425158,500.0,0.00027397,120]
[389161391,1759595429043,10000.0,0.0002876,120]
[389161392,1759595430919,5000.0,0.00018737,2]
[389161393,1759595431294,158.0,0.0002701,120]
[389161447,1759595432104,-150.0,0.000188,2]
[389161448,1759595432118,-170.81586696,0.000188,2]
[389161449,1759595432129,-150.0,0.000188,2]
[389161450,1759595432142,-204.90416361,0.00018878,2]
[389161451,1759595432152,-541.02996943,0.00018888,2]
[389161453,1759595432165,-138.36137096,0.00018888,2]
[389161455,1759595432176,-300.0,0.00018986,2]
[389161456,1759595432187,-300.0,0.00018986,2]
[389161457,1759595432199,-179.0,0.00018986,2]
[389161459,1759595432211,-630.66925632,0.00018986,2]
[389161466,1759595432575,158.0,0.0002836,120]
[389161467,1759595433316,260.69,0.00027397,120]
[389161502,1759595437916,-473.40931158,0.00018986,2]
[389161503,1759595437926,-500.0,0.00018986,2]
[389161505,1759595437937,-500.0,0.00018986,2]
[389161507,1759595437947,-500.0,0.00018986,2]
[389161511,1759595437970,-500.0,0.00018986,2]
[389161513,1759595437984,-523.34068842,0.00018986,2]
[389161516,1759595438003,-2.17889837,0.00018986,2]
[389161518,1759595438013,-342.9695519,0.00018986,2]
[389161558,1759595438382,-569.33074368,0.00018986,2]
[389161562,1759595438404,-50000.0,0.00018987,2]
[389161564,1759595438418,-1200.0,0.00018987,2]
[389161566,1759595438427,-201.91808236,0.00019,2]
[389161568,1759595438436,-266.79932329,0.00019,2]
[389161571,1759595438446,-1035.29,0.00019068,3]
[389161572,1759595438460,-517.65,0.00019068,3]
[389161574,1759595438470,-258.82,0.00019068,3]
[389161576,1759595438480,-776.5,0.00019068,3]
[389161578,1759595438489,-370.11,0.00019068,3]
[389161580,1759595438498,-185.06,0.00019068,3]
[389161582,1759595438508,-555.18,0.00019068,3]
[389161584,1759595438517,-1002.03,0.00019077,2]
[389161585,1759595438525,-357.70705332,0.00019077,2]
[389161586,1759595438534,-500.0,0.00019078,2]
[389161587,1759595438543,-500.0,0.00019078,2]
[389161588,1759595438553,-370000.0,0.00019078,2]
[389161589,1759595438562,-266.79932325,0.00019088,2]
[389161590,1759595438571,-159.54,0.000191,2]
[389161591,1759595438580,-266.79932325,0.00019176,2]
[389161592,1759595438589,-500.0,0.00019178,2]
[389161593,1759595438599,-500.0,0.00019178,2]
[389161594,1759595438608,-2743.65,0.00019178,2]
[389161595,1759595438618,-500.0,0.00019178,2]
[389161596,1759595438627,-292.05299158,0.00019178,2]
[389161597,1759595438636,-500.0,0.00019178,2]
[389161598,1759595438646,-500.0,0.00019178,2]
[389161599,1759595438655,-500.0,0.00019178,2]
[389161600,1759595438664,-500.0,0.00019178,2]
[389161601,1759595438673,-500.0,0.00019178,2]
[389161602,1759595438682,-978.37,0.00019178,2]
[389161603,1759595438691,-241.85759531,0.00019178,2]
[389161604,1759595438701,-500.0,0.00019178,2]
[389161605,1759595438711,-500.0,0.00019178,2]
[389161606,1759595438720,-500.0,0.00019178,2]
[389161607,1759595438733,-500.0,0.00019178,2]
[389161608,1759595438743,-500.0,0.00019178,2]
[389161609,1759595438752,-500.0,0.00019178,2]
[389161610,1759595438762,-500.0,0.00019178,2]
[389161611,1759595438774,-500.0,0.00019178,2]
[389161612,1759595438783,-500.0,0.00019178,2]
[389161613,1759595438792,-500.0,0.00019178,2]
[389161614,1759595438802,-500.0,0.00019178,2]
[389161615,1759595438813,-500.0,0.00019178,2]
[389161616,1759595438823,-500.0,0.00019178,2]
[389161617,1759595438832,-500.0,0.00019178,2]
[389161618,1759595438841,-500.0,0.00019178,2]
[389161619,1759595438851,-500.0,0.00019178,2]
[389161620,1759595438860,-500.0,0.00019178,2]
[389161621,1759595438870,-500.0,0.00019178,2]
[389161622,1759595438880,-500.0,0.00019178,2]
[389161623,1759595438889,-500.0,0.00019178,2]
[389161625,1759595438899,-500.0,0.00019178,2]
[389161627,1759595438910,-500.0,0.00019178,2]
[389161629,1759595438921,-500.0,0.00019178,2]
[389161631,1759595438930,-441.82596915,0.00019178,2]
[389161633,1759595438940,-500.0,0.00019178,2]
[389161635,1759595438949,-500.0,0.00019178,2]
[389161637,1759595438959,-500.0,0.00019178,2]
[389161639,1759595438968,-500.0,0.00019178,2]
[389161641,1759595438978,-500.0,0.00019178,2]
[389161643,1759595438987,-500.0,0.00019178,2]
[389161645,1759595438998,-224.79346775,0.00019178,2]
[389161647,1759595439008,-500.0,0.00019178,2]
[389161649,1759595439019,-500.0,0.00019178,2]
[389161651,1759595439030,-500.0,0.00019178,2]
[389161654,1759595439040,-500.0,0.00019178,2]
[389161656,1759595439049,-500.0,0.00019178,2]
[389161658,1759595439059,-500.0,0.00019178,2]
[389161660,1759595439068,-500.0,0.00019178,2]
[389161661,1759595439078,-500.0,0.00019178,2]
[389161664,1759595439090,-500.0,0.00019178,2]
[389161666,1759595439100,-500.0,0.00019178,2]
[389161668,1759595439109,-503.45,0.00019178,2]
[389161670,1759595439119,-500.0,0.00019178,2]
[389161672,1759595439129,-500.0,0.00019178,2]
[389161674,1759595439139,-500.0,0.00019178,2]
[389161676,1759595439149,-500.0,0.00019178,2]
[389161678,1759595439159,-500.0,0.00019178,2]
[389161680,1759595439169,-516.83,0.00019178,2]
[389161682,1759595439179,-500.0,0.00019178,2]
[389161684,1759595439189,-500.0,0.00019178,2]
[389161686,1759595439198,-500.0,0.00019178,2]
[389161688,1759595439209,-500.0,0.00019178,2]
[389161690,1759595439220,-500.0,0.00019178,2]
[389161692,1759595439229,-500.0,0.00019178,2]
[389161694,1759595439239,-500.0,0.00019178,2]
[389161696,1759595439248,-500.0,0.00019178,2]
[389161698,1759595439258,-500.0,0.00019178,2]
[389161700,1759595439267,-500.0,0.00019178,2]
[389161702,1759595439277,-500.0,0.00019178,2]
[389161704,1759595439287,-500.0,0.00019178,2]
[389161706,1759595439297,-500.0,0.00019178,2]
[389161708,1759595439306,-500.0,0.00019178,2]
[389161710,1759595439316,-500.0,0.00019178,2]
[389161712,1759595439326,-500.0,0.00019178,2]
[389161714,1759595439335,-500.0,0.00019178,2]
[389161716,1759595439345,-500.0,0.00019178,2]
[389161718,1759595439354,-500.0,0.00019178,2]
[389161720,1759595439364,-500.0,0.00019178,2]
[389161722,1759595439373,-500.0,0.00019178,2]
[389161724,1759595439382,-500.0,0.00019178,2]
[389161726,1759595439393,-500.0,0.00019178,2]
[389161728,1759595439402,-500.0,0.00019178,2]
[389161730,1759595439411,-500.0,0.00019178,2]
[389161732,1759595439421,-500.0,0.00019178,2]
[389161734,1759595439430,-500.0,0.00019178,2]
[389161736,1759595439440,-500.0,0.00019178,2]
[389161738,1759595439451,-500.0,0.00019178,2]
[389161741,1759595439459,-500.0,0.00019178,2]
[389161743,1759595439470,-500.0,0.00019178,2]
[389161745,1759595439479,-500.0,0.00019178,2]
[389161747,1759595439489,-500.0,0.00019178,2]
[389161749,1759595439499,-426.29412645,0.00019178,2]
[389161751,1759595439508,-593.77,0.00019178,2]
[389161753,1759595439517,-500.0,0.00019178,2]
[389161754,1759595439526,-589.34,0.00019178,2]
[389161756,1759595439536,-500.0,0.00019178,2]
[389161757,1759595439545,-500.0,0.00019178,2]
[389161758,1759595439554,-414.19280358,0.00019178,2]
[389161759,1759595439564,-500.0,0.00019178,2]
[389161760,1759595439574,-190.54917175,0.00019178,2]
[389161762,1759595439584,-500.0,0.00019178,2]
[389161763,1759595439593,-500.0,0.00019178,2]
[389161764,1759595439603,-500.0,0.00019178,2]
[389161765,1759595439612,-589.32323707,0.00019178,2]
[389161767,1759595439622,-500.0,0.00019178,2]
[389161769,1759595439631,-500.0,0.00019178,2]
[389161771,1759595439641,-500.0,0.00019178,2]
[389161772,1759595439650,-500.0,0.00019178,2]
[389161773,1759595439660,-500.0,0.00019178,2]
[389161774,1759595439669,-480.36958762,0.00019178,2]
[389161775,1759595439678,-502.07718622,0.00019178,2]
[389161776,1759595439687,-500.0,0.00019178,2]
[389161777,1759595439697,-307.15421767,0.00019178,2]
[389161778,1759595439707,-500.0,0.00019178,2]
[389161779,1759595439717,-500.0,0.00019178,2]
[389161780,1759595439731,-500.0,0.00019178,2]
[389161781,1759595439740,-500.0,0.00019178,2]
[389161782,1759595439749,-462.14122412,0.00019178,2]
[389161783,1759595439758,-628.15,0.00019178,2]
[389161784,1759595439769,-549.30809022,0.00019178,2]
[389161785,1759595439779,-381.15904883,0.00019178,2]
[389161786,1759595439788,-500.0,0.00019178,2]
[389161787,1759595439804,-500.0,0.00019178,2]
[389161788,1759595439813,-500.0,0.00019178,2]
[389161789,1759595439823,-500.0,0.00019178,2]
[389161790,1759595439833,-500.0,0.00019178,2]
[389161791,1759595439843,-500.0,0.00019178,2]
[389161792,1759595439852,-500.0,0.00019178,2]
[389161793,1759595439861,-500.0,0.00019178,2]
[389161794,1759595439871,-500.0,0.00019178,2]
[389161795,1759595439881,-500.0,0.00019178,2]
[389161796,1759595439898,-500.0,0.00019178,2]
[389161797,1759595439909,-500.0,0.00019178,2]
[389161798,1759595439920,-500.0,0.00019178,2]
[389161799,1759595439929,-500.0,0.00019178,2]
[389161800,1759595439941,-519.33,0.00019178,2]
[389161801,1759595439952,-500.0,0.00019178,2]
[389161802,1759595439961,-500.0,0.00019178,2]
[389161803,1759595439971,-951.27,0.00019178,2]
[389161804,1759595439982,-500.0,0.00019178,2]
[389161805,1759595439992,-2887.52,0.00019178,2]
[389161806,1759595440001,-500.0,0.00019178,2]
[389161807,1759595440020,-500.0,0.00019178,2]
[389161808,1759595440031,-500.0,0.00019178,2]
[389161809,1759595440042,-500.0,0.00019178,2]
[389161810,1759595440051,-500.0,0.00019178,2]
[389161811,1759595440061,-500.0,0.00019178,2]
[389161812,1759595440071,-749.4,0.00019178,2]
[389161813,1759595440080,-500.0,0.00019178,2]
[389161814,1759595440091,-500.0,0.00019178,2]
[389161815,1759595440102,-500.0,0.00019178,2]
[389161816,1759595440112,-500.0,0.00019178,2]
[389161817,1759595440122,-500.0,0.00019178,2]
[389161818,1759595440132,-670.72,0.00019178,2]
[389161819,1759595440142,-500.0,0.00019178,2]
[389161820,1759595440152,-468.81489536,0.00019178,2]
[389161821,1759595440162,-500.0,0.00019178,2]
[389161822,1759595440172,-500.0,0.00019178,2]
[389161823,1759595440182,-615.74,0.00019178,2]
[389161824,1759595440192,-500.0,0.00019178,2]
[389161825,1759595440202,-500.0,0.00019178,2]
[389161826,1759595440212,-500.0,0.00019178,2]
[389161827,1759595440223,-500.0,0.00019178,2]
[389161829,1759595440233,-652.41,0.00019178,2]
[389161830,1759595440242,-178.54979957,0.00019178,2]
[389161832,1759595440253,-500.0,0.00019178,2]
[389161834,1759595440262,-500.0,0.00019178,2]
[389161836,1759595440272,-500.0,0.00019178,2]
[389161838,1759595440282,-500.0,0.00019178,2]
[389161839,1759595440292,-621.35,0.00019178,2]
[389161840,1759595440302,-500.0,0.00019178,2]
[389161842,1759595440312,-500.0,0.00019178,2]
[389161844,1759595440321,-997.2,0.00019178,2]
[389161846,1759595440331,-500.0,0.00019178,2]
[389161848,1759595440341,-376.06112681,0.00019178,2]
[389161849,1759595440351,-500.0,0.00019178,2]
[389161850,1759595440361,-540.0,0.00019178,2]
[389161851,1759595440372,-2066.08,0.00019178,2]
[389161852,1759595440382,-603.05,0.00019178,2]
[389161853,1759595440392,-500.0,0.00019178,2]
[389161854,1759595440402,-500.0,0.00019178,2]
[389161855,1759595440411,-1345.05,0.00019178,2]
[389161856,1759595440427,-500.0,0.00019178,2]
[389161857,1759595440438,-519.09,0.00019178,2]
[389161858,1759595440448,-429.81151381,0.00019178,2]
[389161859,1759595440460,-775.1,0.00019178,2]
[389161860,1759595440470,-500.0,0.00019178,2]
[389161861,1759595440480,-1065.83,0.00019178,2]
[389161862,1759595440490,-500.0,0.00019178,2]
[389161863,1759595440501,-500.0,0.00019178,2]
[389161865,1759595440511,-551.11,0.00019178,2]
[389161867,1759595440521,-500.0,0.00019178,2]
[389161868,1759595440532,-500.0,0.00019178,2]
[389161869,1759595440541,-500.0,0.00019178,2]
[389161870,1759595440551,-185.54926364,0.00019178,2]
[389161871,1759595440561,-500.0,0.00019178,2]
[389161872,1759595440571,-602.01,0.00019178,2]
[389161873,1759595440581,-500.0,0.00019178,2]
[389161874,1759595440591,-500.0,0.00019178,2]
[389161875,1759595440603,-500.0,0.00019178,2]
[389161876,1759595440613,-500.0,0.00019178,2]
[389161877,1759595440623,-500.0,0.00019178,2]
[389161878,1759595440634,-500.0,0.00019178,2]
[389161879,1759595440644,-500.0,0.00019178,2]
[389161880,1759595440653,-500.0,0.00019178,2]
[389161881,1759595440663,-500.0,0.00019178,2]
[389161882,1759595440672,-480.55281792,0.00019178,2]
[389161883,1759595440682,-500.0,0.00019178,2]
[389161884,1759595440693,-500.0,0.00019178,2]
[389161885,1759595440703,-481.79417268,0.00019178,2]
[389161886,1759595440713,-500.0,0.00019178,2]
[389161887,1759595440722,-500.0,0.00019178,2]
[389161888,1759595440732,-500.0,0.00019178,2]
[389161889,1759595440748,-500.0,0.00019178,2]
[389161890,1759595440758,-500.0,0.00019178,2]
[389161891,1759595440768,-500.0,0.00019178,2]
[389161892,1759595440779,-500.0,0.00019178,2]
[389161893,1759595440790,-522.4,0.00019178,2]
[389161894,1759595440800,-500.0,0.00019178,2]
[389161895,1759595440810,-2482.52,0.00019178,2]
[389161896,1759595440820,-500.0,0.00019178,2]
[389161897,1759595440830,-500.0,0.00019178,2]
[389161898,1759595440840,-500.0,0.00019178,2]
[389161899,1759595440850,-500.0,0.00019178,2]
[389161900,1759595440860,-769.58,0.00019178,2]
[389161901,1759595440870,-500.0,0.00019178,2]
[389161902,1759595440879,-935.98,0.00019178,2]
[389161903,1759595440889,-501.55,0.00019178,2]
[389161904,1759595440899,-897.89,0.00019178,2]
[389161905,1759595440908,-500.0,0.00019178,2]
[389161906,1759595440919,-414.29671918,0.00019178,2]
[389161907,1759595440928,-462.30280547,0.00019178,2]
[389161908,1759595440938,-500.0,0.00019178,2]
[389161909,1759595440948,-500.0,0.00019178,2]
[389161910,1759595440959,-500.0,0.00019178,2]
[389161911,1759595440969,-500.0,0.00019178,2]
[389161912,1759595440979,-500.0,0.00019178,2]
[389161913,1759595440990,-500.0,0.00019178,2]
[389161914,1759595441000,-500.0,0.00019178,2]
[389161915,1759595441010,-279.61,0.00019178,2]
[389161916,1759595441020,-500.0,0.00019178,2]
[389161917,1759595441029,-500.0,0.00019178,2]
[389161918,1759595441039,-1050.25,0.00019178,2]
[389161919,1759595441049,-899.05,0.00019178,2]
[389161920,1759595441058,-500.0,0.00019178,2]
[389161921,1759595441068,-500.0,0.00019178,2]
[389161922,1759595441081,-500.0,0.00019178,2]
[389161923,1759595441091,-500.0,0.00019178,2]
[389161924,1759595441101,-2131.62,0.00019178,2]
[389161925,1759595441111,-500.0,0.00019178,2]
[389161926,1759595441121,-500.0,0.00019178,2]
[389161927,1759595441131,-500.0,0.00019178,2]
[389161928,1759595441141,-1232.69,0.00019178,2]
[389161929,1759595441151,-636.82,0.00019178,2]
[389161930,1759595441162,-500.0,0.00019178,2]
[389161931,1759595441172,-1532.61,0.00019178,2]
[389161932,1759595441184,-500.0,0.00019178,2]
[389161933,1759595441198,-500.0,0.00019178,2]
[389161934,1759595441210,-500.0,0.00019178,2]
[389161935,1759595441220,-500.0,0.00019178,2]
[389161936,1759595441230,-500.0,0.00019178,2]
[389161937,1759595441240,-3054.3,0.00019178,2]
[389161938,1759595441250,-716.42,0.00019178,2]
[389161939,1759595441259,-500.0,0.00019178,2]
[389161940,1759595441269,-551.96,0.00019178,2]
[389161941,1759595441281,-500.0,0.00019178,2]
[389161942,1759595441291,-904.84,0.00019178,2]
[389161943,1759595441301,-942.77,0.00019178,2]
[389161944,1759595441310,-500.0,0.00019178,2]
[389161945,1759595441321,-1730.27,0.00019178,2]
[389161946,1759595441331,-500.0,0.00019178,2]
[389161947,1759595441341,-500.0,0.00019178,2]
[389161948,1759595441352,-500.0,0.00019178,2]
[389161949,1759595441362,-500.0,0.00019178,2]
[389161950,1759595441371,-500.0,0.00019178,2]
[389161951,1759595441381,-500.0,0.00019178,2]
[389161952,1759595441391,-2104.58,0.00019178,2]
[389161953,1759595441400,-807.28,0.00019178,2]
[389161954,1759595441410,-500.0,0.00019178,2]
[389161955,1759595441420,-1345.87,0.00019178,2]
[389161956,1759595441430,-4473.68,0.00019178,2]
[389161957,1759595441440,-500.0,0.00019178,2]
[389161958,1759595441450,-982.86,0.00019178,2]
[389161959,1759595441460,-500.0,0.00019178,2]
[389161960,1759595441469,-500.0,0.00019178,2]
[389161961,1759595441479,-2429.32,0.00019178,2]
[389161962,1759595441490,-482.95183202,0.00019178,2]
[389161963,1759595441499,-500.0,0.00019178,2]
[389161964,1759595441509,-500.0,0.00019178,2]
[389161965,1759595441519,-500.0,0.00019178,2]
[389161966,1759595441531,-500.0,0.00019178,2]
[389161967,1759595441540,-3691.19,0.00019178,2]
[389161968,1759595441550,-815.25,0.00019178,2]
[389161969,1759595441560,-3666.78,0.00019178,2]
[389161970,1759595441570,-500.0,0.00019178,2]
[389161971,1759595441580,-974.64,0.00019178,2]
[389161972,1759595441589,-500.0,0.00019178,2]
[389161973,1759595441601,-625.6,0.00019178,2]
[389161974,1759595441611,-343.3901885,0.00019178,2]
[389161975,1759595441621,-500.0,0.00019178,2]
[389161976,1759595441631,-500.0,0.00019178,2]
[389161977,1759595441641,-5571.8,0.00019178,2]
[389161978,1759595441651,-500.0,0.00019178,2]
[389161979,1759595441661,-500.0,0.00019178,2]
[389161980,1759595441868,-10655.55,0.00019178,2]
[389161981,1759595441884,-519.7,0.00019178,2]
[389161982,1759595441894,-513.98,0.00019178,2]
[389161983,1759595441904,-500.0,0.00019178,2]
[389161984,1759595441913,-500.0,0.00019178,2]
[389161985,1759595441923,-1206.65,0.00019178,2]
[389161986,1759595441932,-500.0,0.00019178,2]
[389161987,1759595441943,-9823.41,0.00019178,2]
[389161988,1759595441953,-3952.06,0.00019178,2]
[389161989,1759595441963,-500.0,0.00019178,2]
[389161990,1759595441972,-648.59,0.00019178,2]
[389161991,1759595441982,-500.0,0.00019178,2]
[389161992,1759595441992,-500.0,0.00019178,2]
[389161993,1759595442002,-500.0,0.00019178,2]
[389161994,1759595442012,-535.34,0.00019178,2]
[389161995,1759595442022,-3794.69,0.00019178,2]
[389161996,1759595442032,-1754.92,0.00019178,2]
[389161997,1759595442041,-1850.44,0.00019178,2]
[389161998,1759595442051,-500.0,0.00019178,2]
[389161999,1759595442060,-500.0,0.00019178,2]
[389162000,1759595442070,-803.67,0.00019178,2]
[389162001,1759595442079,-5614.14,0.00019178,2]
[389162002,1759595442088,-1602.56,0.00019178,2]
[389162003,1759595442098,-596.1,0.00019178,2]
[389162004,1759595442107,-556.72226983,0.00019178,2]
[389162005,1759595442116,-500.0,0.00019178,2]
[389162006,1759595442126,-500.0,0.00019178,2]
[389162007,1759595442135,-1293.58,0.00019178,2]
[389162008,1759595442145,-3278.11,0.00019178,2]
[389162009,1759595442156,-1084.88,0.00019178,2]
[389162010,1759595442165,-1297.94,0.00019178,2]
[389162011,1759595442175,-1112.97,0.00019178,2]
[389162012,1759595442184,-837.17,0.00019178,2]
[389162013,1759595442194,-1447.6,0.00019178,2]
[389162014,1759595442204,-612.32,0.00019178,2]
[389162015,1759595442214,-500.0,0.00019178,2]
[389162016,1759595442224,-2857.34,0.00019178,2]
[389162017,1759595442233,-2158.6,0.00019178,2]
[389162018,1759595442243,-500.0,0.00019178,2]
[389162019,1759595442252,-500.0,0.00019178,2]
[389162020,1759595442261,-500.0,0.00019178,2]
[389162021,1759595442270,-500.0,0.00019178,2]
[389162022,1759595442280,-3412.77,0.00019178,2]
[389162023,1759595442290,-616.30732628,0.00019178,2]
[389162024,1759595442299,-705.35,0.00019178,2]
[389162025,1759595442309,-611.05,0.00019178,2]
[389162026,1759595442319,-500.0,0.00019178,2]
[389162027,1759595442328,-8234.03,0.00019178,2]
[389162028,1759595442337,-500.0,0.00019178,2]
[389162029,1759595442347,-526.72,0.00019178,2]
[389162030,1759595442356,-764.13,0.00019178,2]
[389162031,1759595442365,-500.0,0.00019178,2]
[389162032,1759595442375,-514.12,0.00019178,2]
[389162033,1759595442384,-715.93,0.00019178,2]
[389162034,1759595442393,-500.0,0.00019178,2]
[389162035,1759595442403,-500.0,0.00019178,2]
[389162036,1759595442412,-3388.63,0.00019178,2]
[389162037,1759595442421,-500.0,0.00019178,2]
[389162038,1759595442431,-591.95,0.00019178,2]
[389162039,1759595442440,-1102.54,0.00019178,2]
[389162040,1759595442449,-500.0,0.00019178,2]
[389162041,1759595442460,-3880.22,0.00019178,2]
[389162042,1759595442470,-500.0,0.00019178,2]
[389162043,1759595442479,-500.0,0.00019178,2]
[389162044,1759595442488,-500.0,0.00019178,2]
[389162045,1759595442497,-500.0,0.00019178,2]
[389162046,1759595442507,-805.65,0.00019178,2]
[389162047,1759595442517,-805.65,0.00019178,2]
[389162048,1759595442526,-805.65,0.00019178,2]
[389162049,1759595442536,-805.65,0.00019178,2]
[389162051,1759595442545,-805.65,0.00019178,2]
[389162053,1759595442554,-805.65,0.00019178,2]
[389162054,1759595442564,-805.65,0.00019178,2]
[389162055,1759595442573,-805.65,0.00019178,2]
[389162056,1759595442583,-500.0,0.00019178,2]
[389162057,1759595442592,-805.65,0.00019178,2]
[389162058,1759595442601,-805.65,0.00019178,2]
[389162059,1759595442612,-805.65,0.00019178,2]